Cogmind - Beta 10.2 @@@ ROGUE MODE // 2021.12.17 @ 20:43:22 Player: Ol Swarmie Result: Self-destructed Performance ------------- Evolutions (4) 2000 Regions Visited (6) 1200 Robots Destroyed (40) 200 Value Destroyed (1382) 1382 Prototype IDs (2) 40 Alien Tech Used (0) 0 Bonus (0) 0 TOTAL SCORE: 4822 Bonus ------- None Cogmind --------- Core Integrity 850/850 Matter 300/300 Energy 200/200 System Corruption 0% Temperature Cool (0) Movement Treading (170) Location -6/Factory Parts ------- > --- POWER (3) -------- Light Angular Momentum Engine Light Angular Momentum Engine > --- PROPULSION (4) --- Armored Treads Armored Treads Armored Treads > --- UTILITY (4) ------ Improved Heat Sink Large Storage Unit Long-range Tractor Beam > --- WEAPON (4) ------- Enhanced Autogun Gauss Rifle Gauss Rifle Flak Gun > --- INVENTORY (10) --- Improved Heat Sink Small Matter Pod (50) Heavy Ion Cannon Gauss Rifle Gauss Rifle Gauss Rifle Gauss Rifle Gauss Rifle Flak Gun Peak State ------------ > --- POWER ------------ Light Angular Momentum Engine Light Angular Momentum Engine > --- PROPULSION ------- Armored Treads Armored Treads Armored Treads Armored Treads > --- UTILITY ---------- Improved Heat Sink Large Storage Unit Long-range Tractor Beam > --- WEAPON ----------- Heavy Ion Cannon Enhanced Autogun Gauss Rifle Flak Gun > --- INVENTORY -------- Nuclear Core Small Matter Pod Heavy Particle Cannon Gauss Rifle Gauss Rifle Gauss Rifle Gauss Rifle Gauss Rifle Gauss Rifle Assault Cannon [Rating: 48] Favorites ----------- Power Light Ion Engine Engine Light Ion Engine Power Core Light Nuclear Core Propulsion Armored Treads Treads Armored Treads Leg Aluminum Leg Utility Large Storage Unit Device High-powered Tractor Beam Storage Large Storage Unit Processor Signal Interpreter Weapon Heavy Assault Rifle Energy Gun EM Pulse Gun Energy Cannon Heavy Particle Cannon Ballistic Gun Heavy Assault Rifle Ballistic Cannon Light Cannon Launcher Grenade Launcher Build | -11 -10 -9 -9 -8 -7 -6 ------- Run | Scr Mat Mat Min Mat Fac Fac Slots Evolved 8 | . . 2 . 2 2 2 Power 2 | . . . . 1 . 1 Propulsion 2 | . . 2 . . . . Utility 2 | . . . . 1 . 1 Weapon 2 | . . . . . 2 . Parts Attached 71 | 6 5 24 9 14 13 . Power 14 | 1 . 3 . 5 5 . Engine 11 | 1 . 3 . 3 4 . Core 3 | . . . . 2 1 . Reactor . | . . . . . . . Propulsion 15 | 2 . 8 5 . . . Treads 4 | . . . 4 . . . Leg 11 | 2 . 8 1 . . . Wheel . | . . . . . . . Hover . | . . . . . . . Flight . | . . . . . . . Utility 11 | 1 4 3 . 2 1 . Device 6 | . 1 2 . 2 1 . Storage 4 | 1 2 1 . . . . Processor 1 | . 1 . . . . . Hackware . | . . . . . . . Protection . | . . . . . . . Artifact . | . . . . . . . Weapon 31 | 2 1 10 4 7 7 . Energy Gun 10 | 2 . 7 . 1 . . Energy Cannon 3 | . . . . 2 1 . Ballistic Gun 9 | . . 1 2 2 4 . Ballistic Cannon 4 | . . . 1 2 1 . Launcher 5 | . 1 2 1 . 1 . Special Weapon . | . . . . . . . Impact Weapon . | . . . . . . . Slashing Weapon . | . . . . . . . Piercing Weapon . | . . . . . . . Special Melee Weapon . | . . . . . . . Unidentified Prototypes 2 | . . 1 . 1 . . Parts Lost 16 | . . 9 . 4 3 . Power 4 | . . 2 . 1 1 . Propulsion 3 | . . 2 . . 1 . Utility 1 | . . . . 1 . . Weapon 8 | . . 5 . 2 1 . Highest Loss Streak 6 | . . 6 . 2 2 . Average Slot Usage (%) 95 | . 97 95 100 88 97 . Engine 10 | . 14 10 11 11 7 . Core 2 | . . . . 6 6 . Treads 22 | . . . 43 36 29 . Leg 13 | . 28 40 . . . . Device 7 | . 3 2 11 8 14 . Storage 9 | . 10 11 11 9 7 . Processor 3 | . 11 8 . . . . Energy Gun 6 | . 24 15 . 1 . . Energy Cannon 2 | . . . . 6 2 . Ballistic Gun 7 | . . . 9 6 22 . Ballistic Cannon 3 | . . . 10 3 3 . Launcher 2 | . 3 6 1 . 1 . Naked Turns . | . . . . . . . Heaviest Build 55 | 11 16 26 26 37 55 . Greatest Support 80 | 20 20 43 80 80 80 . Greatest Overweight (x) . | . . . . . . . Average Overweight (x) . | . . . . . . . Largest Inventory Capacity 10 | 6 8 10 10 10 10 . Average Capacity 9 | 5 6 8 10 10 10 . Most Carried 10 | 4 5 10 10 10 10 . Average Carried 7 | . 2 6 8 9 8 . Final Capacity 10 | 6 8 10 10 10 10 10 Final Carried 10 | . 5 10 10 9 9 9 Class Distribution -------------------- 69% | Mutant 19% | Gunner 11% | Scavenger-Mutant Dominant Class ---------------- Mutant | -10/Materials Mutant | -9/Materials Mutant | -9/Mines Mutant | -8/Materials Gunner | -7/Factory Gunner | -6/Factory Resources | -11 -10 -9 -9 -8 -7 -6 ----------- Run | Scr Mat Mat Min Mat Fac Fac Matter Collected 1404 | 228 52 325 61 243 495 . Remotely 343 | . . 20 61 92 170 . Salvage Created 1544 | . 97 539 50 365 493 . Parts 83 | . 8 23 9 15 28 . Haulers Intercepted . | . . . . . . . Recyclers Shooed . | . . . . . . . Parts Field Recycled . | . . . . . . . Retrieved Matter . | . . . . . . . Parts Self-Destructed . | . . . . . . . Prevented . | . . . . . . . Kills | -11 -10 -9 -9 -8 -7 -6 ------- Run | Scr Mat Mat Min Mat Fac Fac Combat Hostiles Destroyed 35 | . 2 11 6 7 9 . Guns 15 | . . 6 2 1 6 . Cannons 10 | . . . 1 6 3 . AOE 10 | . 2 5 3 . . . Classes Destroyed 9 | . 2 5 . 2 . . Recycler 1 | . . 1 . . . . Operator 1 | . . 1 . . . . Watcher 3 | . 2 1 . . . . Swarmer 8 | . . 2 6 . . . Grunt 16 | . 2 7 . 1 6 . Brawler 1 | . . 1 . . . . Duelist 2 | . . 1 . . 1 . Sentry 6 | . . . . 4 2 . Hunter 2 | . . . . 2 . . Best Kill Streak 7 | . 3 6 3 1 7 . Combat Bots Only 7 | . 2 5 3 1 7 . Max Kills in Single Turn 2 | . 2 1 2 1 1 . Gunslinging . | . . . . . . . Exploded 2 | . 2 1 2 . . . Melee . | . . . . . . . Uniques/NPCs Destroyed . | . . . . . . . Combat | -11 -10 -9 -9 -8 -7 -6 -------- Run | Scr Mat Mat Min Mat Fac Fac Damage Taken 3055 | . 70 873 146 986 980 . Core 354 | . . 190 9 103 52 . Absorbed by Shields . | . . . . . . . Core Remaining (%) 84 | 100 100 . 50 81 92 . Volleys Fired 107 | . 6 41 9 33 18 . Largest 4 | . 2 2 2 2 4 . Hottest 150 | . 90 95 65 150 146 . Shots Fired 241 | . 12 79 16 64 70 . Gun 160 | . 11 69 4 21 55 . Cannon 67 | . . . 9 43 15 . Launcher 14 | . 1 10 3 . . . Special . | . . . . . . . Kinetic 107 | . . 5 13 25 64 . Thermal 70 | . 5 20 . 39 6 . Explosive 14 | . 1 10 3 . . . Electromagnetic 50 | . 6 44 . . . . Robot Hit Streak 16 | . 2 14 6 11 16 . Robot Miss Streak 5 | . 2 5 1 4 3 . Penetration Max . | . . . . . . . Secondary Targets 3 | . . 3 . . . . Max Gunslinging Chain 1 | . . 1 . . . . Shots Hit Robots 154 | . 5 45 10 41 53 . Core Hits 73 | . 6 27 6 12 22 . Critical Hits . | . . . . . . . Critical Kills . | . . . . . . . Critical Parts Destroyed . | . . . . . . . Melee Attacks . | . . . . . . . Impact . | . . . . . . . Slashing . | . . . . . . . Piercing . | . . . . . . . Sneak Attacks . | . . . . . . . Combat Hostiles . | . . . . . . . Follow-up Attacks . | . . . . . . . Damage Inflicted 3590 | . 155 1196 346 772 1121 . Guns 1772 | . 86 608 42 203 833 . Cannons 938 | . . . 85 565 288 . Explosions 876 | . 69 588 219 . . . Melee . | . . . . . . . Ramming 4 | . . . . 4 . . Kinetic 1395 | . . 26 127 231 1011 . Thermal 924 | . 12 265 . 537 110 . Explosive 687 | . 69 399 219 . . . Electromagnetic 580 | . 74 506 . . . . Impact . | . . . . . . . Slashing . | . . . . . . . Piercing . | . . . . . . . Highest Corruption 1 | . . . . . 1 . Average Corruption 1 | . . . . . 1 . Corruption Purged . | . . . . . . . Effects 2 | . . . . . 2 . Data Loss (minor) 1 | . . . . . 1 . Targeting Errors 1 | . . . . . 1 . Overload Shots . | . . . . . . . Overflow Damage 89 | . . 26 22 26 15 . Projectiles 56 | . . . 15 26 15 . Explosions 33 | . . 26 7 . . . Melee . | . . . . . . . Knockbacks 6 | . . . 1 3 2 . Impact . | . . . . . . . Kinetic 6 | . . . 1 3 2 . Secondary . | . . . . . . . Self-Inflicted Damage 94 | . . 94 . . . . Shots 3 | . . 3 . . . . Rammed 4 | . . . 1 3 . . Targets Rammed 4 | . . . 1 3 . . Kicked . | . . . . . . . Crushed . | . . . . . . . Highest Temperature 359 | . 60 213 . 359 140 . Average Temperature 81 | . 25 69 . 105 61 . Received Heat Transfer 789 | . 15 180 . 162 432 . Effects 1 | . . 1 . . . . Interference 1 | . . 1 . . . . Siege Activations . | . . . . . . . Robots Corrupted . | . . . . . . . Combat Hostiles . | . . . . . . . Parts Fried 4 | . 1 3 . . . . Impact Corruptions . | . . . . . . . Robots Melted . | . . . . . . . Combat Hostiles . | . . . . . . . Parts Melted 4 | . . . . 4 . . Heat Transferred 1445 | . 37 372 . 888 148 . Parts Sabotaged . | . . . . . . . Parts Stolen . | . . . . . . . Parts Stripped . | . . . . . . . Power Chain Reactions 4 | . . 4 . . . . Missiles Intercepted . | . . . . . . . Alert | -11 -10 -9 -9 -8 -7 -6 ------- Run | Scr Mat Mat Min Mat Fac Fac Peak Influence 323 | . 94 309 223 323 276 . Initial 86 | . . 39 68 86 76 53 Average 135 | . 38 149 130 168 138 . Maximum Alert Level 1 | . . 1 1 1 1 . Low Security (%) 80 | 100 100 80 93 75 62 . Level 1 19 | . . 19 6 24 37 . Level 2 . | . . . . . . . Level 3 . | . . . . . . . Level 4 . | . . . . . . . Level 5 . | . . . . . . . High Security . | . . . . . . . Max Security . | . . . . . . . Squads Dispatched 4 | . . 2 . 1 1 . Investigation . | . . . . . . . Extermination 1 | . . . . . 1 . Reinforcement 3 | . . 2 . 1 . . Assault . | . . . . . . . Garrison . | . . . . . . . Intercept . | . . . . . . . Construction Impeded . | . . . . . . . Haulers Reinforced . | . . . . . . . Stealth | -11 -10 -9 -9 -8 -7 -6 --------- Run | Scr Mat Mat Min Mat Fac Fac Distress Signals 2 | . 1 1 . . . . Communications Jammed . | . . . . . . . Distress Signals . | . . . . . . . Times Spotted 51 | . 4 19 7 11 10 . Peak Tracking Total 6 | . 3 5 4 3 6 . Tactical Retreats 1 | . . 1 . . . . Traps | -11 -10 -9 -9 -8 -7 -6 ------- Run | Scr Mat Mat Min Mat Fac Fac Traps Triggered 2 | . 1 1 . . . . Indirectly . | . . . . . . . Trap Hack Attempts . | . . . . . . . Triggered . | . . . . . . . Disarmed . | . . . . . . . Reprogrammed . | . . . . . . . Reused . | . . . . . . . Traps Extracted . | . . . . . . . Installed . | . . . . . . . Triggered . | . . . . . . . Machines | -11 -10 -9 -9 -8 -7 -6 ---------- Run | Scr Mat Mat Min Mat Fac Fac Machines Disabled 5 | . . 3 . 1 1 . Max in Single Turn 1 | . . 1 . 1 1 . Machines Sabotaged . | . . . . . . . Garrisons Compromised . | . . . . . . . Overloaded Fab Kills . | . . . . . . . Fab Network Shutdowns . | . . . . . . . Hacking | -11 -10 -9 -9 -8 -7 -6 --------- Run | Scr Mat Mat Min Mat Fac Fac Machines Accessed 6 | . . 4 . 2 . . Terminals 5 | . . 3 . 2 . . Fabricators . | . . . . . . . Repair Stations 1 | . . 1 . . . . Recycling Units . | . . . . . . . Scanalyzers . | . . . . . . . Garrison Access . | . . . . . . . Total Hacks 12 | . . 8 . 4 . . Successful 7 | . . 3 . 4 . . Failed 5 | . . 5 . . . . Catastrophic 1 | . . 1 . . . . Database Lockouts . | . . . . . . . Manual . | . . . . . . . Terminals 11 | . . 7 . 4 . . Fabricators . | . . . . . . . Repair Stations 1 | . . 1 . . . . Recycling Units . | . . . . . . . Scanalyzers . | . . . . . . . Garrison Access . | . . . . . . . Terminal Hacks 7 | . . 3 . 4 . . Record 3 | . . 1 . 2 . . Alert Level 2 | . . 1 . 1 . . Zone Layout 2 | . . 1 . 1 . . Fabricator Hacks . | . . . . . . . Repair Station Hacks . | . . . . . . . Recycling Unit Hacks . | . . . . . . . Scanalyzer . | . . . . . . . Garrison Access Hacks . | . . . . . . . Unauthorized Hacks . | . . . . . . . Terminals . | . . . . . . . Fabricators . | . . . . . . . Repair Stations . | . . . . . . . Recycling Units . | . . . . . . . Scanalyzers . | . . . . . . . Garrison Access . | . . . . . . . Data Cores Recovered 1 | . . 1 . . . . Used . | . . . . . . . Hacking Detections 5 | . . 3 . 2 . . Full Trace Events 1 | . . . . 1 . . Feedback Events . | . . . . . . . Feedback Blocked . | . . . . . . . Robot Schematics Acquired . | . . . . . . . Robots Built . | . . . . . . . Matter . | . . . . . . . Time . | . . . . . . . Total Robot Build Rating . | . . . . . . . Part Schematics Acquired . | . . . . . . . Parts Built . | . . . . . . . Matter . | . . . . . . . Time . | . . . . . . . Total Part Build Rating . | . . . . . . . Parts Repaired . | . . . . . . . Time . | . . . . . . . Parts Recycled . | . . . . . . . Recycled Matter . | . . . . . . . Retrieved Matter . | . . . . . . . Retrieved Components . | . . . . . . . Parts Scanalyzed . | . . . . . . . Part Schematics Acquired . | . . . . . . . Parts Damaged . | . . . . . . . Bothacking | -11 -10 -9 -9 -8 -7 -6 ------------ Run | Scr Mat Mat Min Mat Fac Fac Used RIF Installer . | . . . . . . . Robots Hacked . | . . . . . . . Non-combat . | . . . . . . . Combat . | . . . . . . . Robot Hacks Applied . | . . . . . . . Relay Couplers Released . | . . . . . . . Robots Rewired . | . . . . . . . Allies Hacked . | . . . . . . . Hacks Repelled . | . . . . . . . Allies | -11 -10 -9 -9 -8 -7 -6 -------- Run | Scr Mat Mat Min Mat Fac Fac Total Allies . | . . . . . . . Largest Group . | . . . . . . . Highest-Rated Group . | . . . . . . . Highest-Rated Ally . | . . . . . . . Total Orders . | . . . . . . . Ally Attacks . | . . . . . . . Total Damage . | . . . . . . . Kills . | . . . . . . . Allies Corrupted . | . . . . . . . Allies Melted . | . . . . . . . Intel | -11 -10 -9 -9 -8 -7 -6 ------- Run | Scr Mat Mat Min Mat Fac Fac Robot Analysis Total . | . . . . . . . Derelict Logs Recovered 1 | . . . 1 . . . Drone Launches . | . . . . . . . Drone Recoveries . | . . . . . . . Exploration | -11 -10 -9 -9 -8 -7 -6 ------------- Run | Scr Mat Mat Min Mat Fac Fac Turns Passed 2430 | 41 250 622 383 679 455 . Spaces Moved 1323 | 32 182 379 198 320 212 . Core 12 | 12 . . . . . . Treads 730 | . . . 198 320 212 . Legs 581 | 20 182 379 . . . . Wheels . | . . . . . . . Hover . | . . . . . . . Flight . | . . . . . . . Fastest Speed 50 | 50 120 120 170 170 170 . Average Speed 146 | 93 120 120 170 170 170 . Slowest Speed 170 | 120 120 120 170 170 170 . Overloaded Moves . | . . . . . . . Propulsion Burnouts . | . . . . . . . Robots Hopped . | . . . . . . . Cave-ins Triggered . | . . . . . . . Exploration Rate (%) 25 | 4 35 34 45 26 6 . Regions Visited 6 Branch Regions 1 Pre-discovered Areas . | . . . . . . . Known Exits Taken 2 | . 1 . . 1 . . Unknown Exits Taken 4 | 1 . 1 1 . 1 . Scrap Searched . | . . . . . . . Spaces Dug 8 | . . 6 . 2 . . Terrain Destroyed 111 | . 7 78 13 13 . . Melee . | . . . . . . . Projectile 13 | . . . . 13 . . AOE 98 | . 7 78 13 . . . Terrain Rammed . | . . . . . . . Walls Destroyed . | . . . . . . . Machines Disabled . | . . . . . . . Actions | -11 -10 -9 -9 -8 -7 -6 --------- Run | Scr Mat Mat Min Mat Fac Fac Total 1594 | 43 200 462 226 389 274 . Wait . | . . . . . . . Move 1317 | 31 181 378 197 319 211 . Hop . | . . . . . . . Pick Up 64 | 6 7 18 5 12 16 . Fast Attach 5 | . . 2 . 1 2 . Attach 28 | 6 1 11 . 5 5 . Detach 1 | . . . . . 1 . Swap 38 | . 4 11 9 8 6 . Drop 30 | . 1 1 5 8 15 . Fire 107 | . 6 41 9 33 18 . Melee . | . . . . . . . Ram . | . . . . . . . Kick . | . . . . . . . Crush 4 | . . . 1 3 . . Escape Stasis . | . . . . . . . Rewire . | . . . . . . . Trap . | . . . . . . . Miscellaneous . | . . . . . . . Route ------- -11/Scrapyard -10/Materials -9/Materials -9/Mines -8/Materials -7/Factory -6/Factory History --------- Turn | Location | Event 7 | -11/Scrapyard | Discovered new exit (range 15) 42 | -11/Scrapyard | Entered Materials 274 | -10/Materials | Discovered new exit (range 4) 279 | -10/Materials | Identified exit to Materials 292 | -10/Materials | Entered another Materials area 292 | -9/Materials | Evolved 2 slots: Propulsion x2 315 | -9/Materials | Build established: Mutant 765 | -9/Materials | Lost 6 parts (1p2n3w) 869 | -9/Materials | Discovered new exit (range 13) 914 | -9/Materials | Entered Mines 1258 | -9/Mines | Discovered new exit (range 14) 1297 | -9/Mines | Entered Materials 1297 | -8/Materials | Evolved 2 slots: Power x1, Utility x1 1298 | -8/Materials | Identified exit to Factory 1976 | -8/Materials | Entered Factory 1976 | -7/Factory | Evolved 2 slots: Weapon x2 2228 | -7/Factory | Destroyed 7 combat bots 2271 | -7/Factory | Build established: Gunner 2392 | -7/Factory | Discovered new exit (range 16) 2431 | -7/Factory | Entered another Factory area 2431 | -6/Factory | Evolved 2 slots: Power x1, Utility x1 2431 | -6/Factory | Self-destructed Last Messages --------------- 02395_ K-01 Serf collects debris. 02397_ Arm. Treads destroyed. 02398_ Slug penetrates Y-54 Guardian. 02398_ Slug penetrates Wall. 02399_ Acquired 1 matter. 02400_ K-01 Serf collects debris. 02401_ System corrupted: Gauss Rifle targeting data glitched. 02401_ Slug penetrates Y-54 Guardian. 02403_ K-01 Serf collects debris. 02404_ Slug penetrates Y-54 Guardian. 02404_ Y-54 Guardian destroyed. 02405_ Acquired 47 matter. 02406_ System corrupted: Component data lost. 02408_ K-01 Serf collects debris. 02426_ Acquired Flak Gun. 02430_ K-01 Serf collects debris. 02430_ Acquired Imp. Heat Sink. PARAMETERS=POWER_1,UTILITY_1 LOCATION=UNKNOWN GOAL=ESCAPE Map ----- +----------------------------------------------------+ | ?????????????????????????????????????????????????? | | ?????????????????????????????????????????????????? | | ?????????????????????????????????????????????????? | | ?????????????????????????????????????????????????? | | ?????????????????????????????????????????????????? | | ?????????????????????????????????????????????????? | | ?????????????????????????????????????????????????? | | ?????????????????????????????????????????????????? | | ?????????????????????????????????????????????????? | | ?????????????????????????????????????????????????? | | ?????????????????????????????????????????????????? | | ?????????????????????????????????????????????????? | | ?????????????????????????????????????????????????? | | ?????????????????????????????????????????????????? | | ?????????????????????????????????????????????????? | | ?????????????????????????????????????????????????? | | ?????????????????????????????????????????????????? | | ?????????????????????????????????????????????????? | | ?????????????????????????????????????????????????? | | ?????????????????????????????????????????????????? | | ?????????????????????????????????????????????????? | | ?????????????????????????????????????????????????? | | ??????????????????????#######????????????????????? | | ??????????????????????# #????????????????????? | | ??????????????????????# #????????????????????? | | ??????????????????????# @ #????????????????????? | | ??????????????????????# #????????????????????? | | ??????????????????????+ #????????????????????? | | ??????????????????????# #????????????????????? | | ??????????????????????# #????????????????????? | | ??????????????????????# #????????????????????? | | ??????????????????????# #????????????????????? | | ??????????????????????# ????????????????????? | | ??????????????????????# ????????????????????? | | ??????????????????????# ???????????????????? | | ??????????????????????# ???????????????????? | | ??????????????????????# ???????????????????? | | ??????????????????????#########??????????????????? | | ?????????????????????????????????????????????????? | | ?????????????????????????????????????????????????? | | ?????????????????????????????????????????????????? | | ?????????????????????????????????????????????????? | | ?????????????????????????????????????????????????? | | ?????????????????????????????????????????????????? | | ?????????????????????????????????????????????????? | | ?????????????????????????????????????????????????? | | ?????????????????????????????????????????????????? | | ?????????????????????????????????????????????????? | | ?????????????????????????????????????????????????? | | ?????????????????????????????????????????????????? | +----------------------------------------------------+ Best States ------------- Heat Dissipation 48 Coolant Potential 50 Energy Generation 31 Energy Capacity 340 Matter Stores 300 Matter Capacity 300 Sight Range 16 Terrain Scan Density 10 Evasion (%) 50 Recoil Reduction 4 Item Schematics ----------------- None Robot Schematics ------------------ None Fabricated ------------ Nothing Alien Tech Used ----------------- None Achievements -------------- Made in Tau Ceti IV Use The Force Challenges ------------ None Game ------ Seed AdvancedScanKit Manual? 0 Play Time 00:56:27 Cumulative 4.2 hours Start 2021.11.27 @ 20:59:07 End 2021.12.17 @ 20:43:22 Sessions 3 Manual Loads 0 Difficulty Rogue Special Mode None Game No. 5 Rogue 5 Adventurer 0 Explorer 0 Win Type - Total 0 Types 0/0/0/0/0/0/0/0/0 Lore% 2 Gallery% 6 Achievement% 5 Wizard Run 0 Options --------- ASCII 0 Keyboard 0 Movement Mouse Keybinds 0 Fullscreen 2 Font 24/Smallcaps Map View 76x50 Tactical HUD 1 Map Filters NONE Filters NONE Steam 1 RUN: 9e4b2b57-76be-493b-bce7-d2b176f268d9